bitfinex/quotes_SOLUSD_20230404
["timestamp","ask_amount","ask_price","bid_price","bid_amount"]
[1680603097756,44.82,20.65,20.641,19.373477]
[1680603098069,19.372,20.649,20.641,19.373477]
[1680603098764,20.0,20.648,20.641,19.373477]
[1680603099160,44.82,20.65,20.641,19.373477]
[1680603099161,27.82,20.65,20.641,19.373477]
[1680603100756,20.0,20.649,20.641,19.373477]
[1680603102264,27.82,20.65,20.641,19.373477]
[1680603104658,20.0,20.649,20.641,19.373477]
[1680603105258,20.0,20.649,20.632,7.26560392]
[1680603105461,20.0,20.649,20.633,37.0]
[1680603107263,20.0,20.649,20.633,44.26560392]
[1680603109069,20.0,20.649,20.633,37.0]
[1680603112872,20.0,20.647,20.631,14.7355442]
[1680603113076,20.0,20.647,20.63,78.62039635]
[1680603113077,20.0,20.646,20.632,17.0]
[1680603113269,20.0,20.646,20.631,17.0]
[1680603114068,20.0,20.649,20.632,20.0]
[1680603114281,20.0,20.652,20.633,17.0]
[1680603114594,20.0,20.651,20.633,17.0]
[1680603114891,20.0,20.649,20.633,17.0]
[1680603115294,20.0,20.649,20.631,131.65126409]
[1680603115484,20.0,20.649,20.631,37.16009044]
[1680603115685,20.0,20.647,20.631,37.16009044]
[1680603115880,20.0,20.646,20.631,37.16009044]
[1680603116081,20.0,20.645,20.631,37.16009044]
[1680603116283,20.0,20.644,20.631,37.16009044]
[1680603117793,20.0,20.644,20.632,17.0]
[1680603118381,20.0,20.646,20.632,17.0]
[1680603120000,40.18559678,20.668,20.633,20.0]
[1680603120198,27.84,20.65,20.634,17.0]
[1680603120584,20.0,20.649,20.634,17.0]
[1680603122302,19.366,20.655,20.634,67.90039635]
[1680603122596,19.366,20.655,20.634,50.90039635]
[1680603122796,19.366,20.655,20.635,24.26560392]
[1680603123193,19.366,20.655,20.636,7.26560392]
[1680603123389,19.366,20.655,20.637,17.0]
[1680603123986,19.366,20.655,20.635,17.0]
[1680603129510,20.0,20.649,20.636,7.26560392]
[1680603129710,20.0,20.649,20.637,17.0]
[1680603130603,20.0,20.649,20.633,20.0]
[1680603130795,20.0,20.649,20.636,7.26560392]
[1680603131195,20.0,20.649,20.634,17.0]
[1680603131914,20.0,20.649,20.633,20.0]
[1680603132105,20.0,20.649,20.632,20.0]
[1680603133398,20.0,20.648,20.633,7.26560392]
[1680603133802,20.0,20.648,20.63,27.82]
[1680603134115,20.0,20.647,20.632,17.0]
[1680603134299,20.0,20.646,20.632,17.0]
[1680603134802,20.0,20.646,20.632,24.26560392]
[1680603137201,20.0,20.646,20.632,7.26560392]
[1680603138906,17.0,20.645,20.632,7.26560392]
[1680603139127,20.0,20.644,20.632,7.26560392]
[1680603139803,20.0,20.645,20.632,7.26560392]
[1680603140814,20.0,20.645,20.634,20.0]
[1680603141020,20.0,20.649,20.635,17.0]
[1680603141228,20.0,20.648,20.634,7.26560392]
[1680603141526,20.0,20.648,20.633,17.0]
[1680603142109,20.0,20.648,20.632,94.08313833]
[1680603142301,36.373,20.647,20.632,94.08313833]
[1680603142507,20.0,20.646,20.632,7.26560392]
[1680603142818,20.0,20.646,20.622,14.28207342]
[1680603142819,19.377,20.644,20.627,86.81753441]
[1680603143013,19.377,20.644,20.629,7.26560392]
[1680603143321,20.0,20.643,20.629,7.26560392]
[1680603147420,20.0,20.641,20.629,7.26560392]
[1680603148621,20.0,20.643,20.629,7.26560392]
[1680603148812,129.2456,20.644,20.629,7.26560392]
[1680603149317,20.0,20.643,20.629,7.26560392]
[1680603150633,129.2456,20.644,20.629,7.26560392]
[1680603152225,129.2456,20.644,20.63,17.0]
[1680603152727,109.8686,20.644,20.63,17.0]
[1680603156423,109.8686,20.644,20.629,17.0]
[1680603157727,109.8686,20.644,20.628,37.0]
[1680603159915,109.8686,20.644,20.628,17.0]
[1680603160623,20.0,20.643,20.628,17.0]
[1680603163634,109.8686,20.644,20.628,17.0]
[1680603168029,20.0,20.643,20.628,17.0]
[1680603170643,109.8686,20.644,20.628,17.0]
[1680603179852,20.0,20.643,20.628,17.0]
[1680603180439,27.82,20.64,20.625,120.23610392]
[1680603180637,27.82,20.64,20.625,7.26560392]
[1680603181750,27.82,20.64,20.626,17.0]
[1680603182156,20.0,20.639,20.626,17.0]
[1680603182761,20.0,20.639,20.625,7.26560392]
[1680603183640,20.0,20.639,20.622,14.28207342]
[1680603183853,20.0,20.637,20.623,20.0]
[1680603185261,20.0,20.639,20.623,20.0]
[1680603185262,20.0,20.639,20.624,7.26560392]
[1680603185839,20.0,20.639,20.625,17.0]
[1680603186759,20.0,20.639,20.624,7.26560392]
[1680603187053,27.82,20.64,20.624,7.26560392]
[1680603187542,27.82,20.64,20.625,17.0]
[1680603187955,27.82,20.64,20.625,24.26560392]
[1680603190443,40.0,20.646,20.625,24.26560392]
[1680603190637,20.0,20.645,20.625,24.26560392]
[1680603194752,20.0,20.641,20.622,44.8907773]
[1680603194962,20.0,20.64,20.621,51.46920857]
[1680603195553,20.0,20.639,20.621,51.46920857]
[1680603195754,20.0,20.638,20.621,58.73481249]
[1680603196140,20.0,20.638,20.622,17.0]
[1680603196346,20.0,20.638,20.621,58.73481249]
[1680603196657,20.0,20.638,20.623,7.26560392]
[1680603197550,108.9792,20.637,20.623,7.26560392]
[1680603197752,20.0,20.636,20.623,7.26560392]
[1680603200154,40.0,20.636,20.623,7.26560392]
[1680603200755,20.0,20.636,20.623,7.26560392]
[1680603202358,40.0,20.636,20.623,7.26560392]
[1680603202567,20.0,20.636,20.623,7.26560392]
[1680603204351,20.0,20.636,20.624,17.0]
[1680603204764,20.0,20.636,20.624,24.26560392]
[1680603207975,20.0,20.636,20.624,17.0]
[1680603208160,20.0,20.636,20.622,17.0]
[1680603208952,20.0,20.636,20.621,17.0]
[1680603209647,20.0,20.635,20.621,17.0]
[1680603209869,20.0,20.634,20.621,17.0]
[1680603210052,20.0,20.636,20.621,17.0]
[1680603211074,40.0,20.636,20.621,17.0]
[1680603211868,20.0,20.636,20.621,17.0]
[1680603214272,20.0,20.635,20.621,17.0]
[1680603214569,20.0,20.634,20.621,17.0]
[1680603214770,19.90160226,20.634,20.621,17.0]
[1680603219963,19.90160226,20.634,20.62,14.70644071]
[1680603220162,19.90160226,20.634,20.619,7.26560392]
[1680603220364,19.90160226,20.634,20.62,17.0]
[1680603222080,20.0,20.633,20.62,17.0]
[1680603222263,22.39,20.63,20.62,17.0]
[1680603224981,22.39,20.63,20.619,21.94686534]
[1680603225781,22.39,20.63,20.62,17.0]
[1680603226285,22.39,20.63,20.619,21.94686534]
[1680603226890,22.39,20.63,20.62,17.0]
[1680603235486,20.0,20.633,20.619,21.94686534]
[1680603236490,22.39,20.63,20.619,14.68126142]
[1680603236791,20.0,20.629,20.615,19.398217]
[1680603237179,20.0,20.629,20.615,26.66382092]
[1680603237898,20.0,20.629,20.616,17.0]
[1680603240489,20.0,20.629,20.615,22.14513589]
[1680603240693,37.0,20.628,20.615,14.87953197]
[1680603240986,20.0,20.628,20.61,22.39]
[1680603241187,20.0,20.627,20.61,22.39]
[1680603241386,20.0,20.626,20.61,22.39]
[1680603241589,20.0,20.626,20.61,29.65560392]
[1680603241788,20.0,20.626,20.61,22.39]
[1680603241990,20.0,20.626,20.606,44.8907773]
[1680603242180,20.0,20.626,20.609,20.0]
[1680603242382,20.0,20.626,20.61,17.0]
[1680603242795,20.0,20.627,20.611,7.26560392]
[1680603242982,20.0,20.627,20.612,17.0]
[1680603243174,20.0,20.627,20.613,20.0]
[1680603243379,20.0,20.627,20.614,17.0]
[1680603243881,20.0,20.627,20.612,7.26560392]
[1680603243882,20.0,20.627,20.613,17.0]
[1680603247106,20.0,20.627,20.612,17.0]
[1680603247303,20.0,20.627,20.611,7.26560392]
[1680603248202,27.79,20.63,20.611,7.26560392]
[1680603248496,111.158,20.629,20.612,20.0]
[1680603248699,111.158,20.629,20.613,17.0]
[1680603255506,111.158,20.629,20.614,19.404]
[1680603255805,111.158,20.629,20.615,17.0]
[1680603256007,111.158,20.629,20.616,20.0]
[1680603256307,111.158,20.629,20.617,17.0]
[1680603258307,110.9764,20.636,20.617,17.0]
[1680603258495,20.0,20.635,20.619,20.0]
[1680603258692,20.0,20.635,20.62,17.0]
[1680603261815,20.0,20.635,20.619,20.0]
[1680603262311,20.0,20.635,20.62,17.0]
[1680603262513,20.0,20.635,20.621,20.0]
[1680603262713,20.0,20.635,20.622,17.0]
[1680603286623,20.0,20.635,20.614,237.14610392]
[1680603287917,17.0,20.634,20.614,237.14610392]
[1680603288117,20.0,20.635,20.614,237.14610392]
[1680603288518,20.0,20.635,20.614,229.8805]
[1680603288717,40.0,20.637,20.615,20.0]
[1680603289118,40.0,20.637,20.616,17.0]
[1680603289320,40.0,20.637,20.617,20.0]
[1680603289630,20.0,20.635,20.618,17.0]
[1680603289926,20.0,20.634,20.618,17.0]
[1680603290530,20.0,20.634,20.616,17.0]
[1680603292729,20.0,20.634,20.617,19.401]
[1680603292912,20.0,20.635,20.618,17.0]
[1680603293424,20.0,20.635,20.62,47.397]
[1680603293608,20.0,20.635,20.622,20.0]
[1680603293812,73.953,20.647,20.623,37.0]
[1680603294013,73.953,20.647,20.624,19.394]
[1680603294308,73.953,20.647,20.625,17.0]
[1680603294522,73.953,20.647,20.625,114.3280857]
[1680603294724,73.953,20.647,20.63,28.0]
[1680603294932,73.953,20.647,20.631,37.0]
[1680603295613,73.953,20.647,20.632,20.0]
[1680603295924,73.953,20.647,20.633,17.0]
[1680603296228,73.953,20.647,20.633,37.0]
[1680603296529,73.953,20.647,20.634,20.0]
[1680603296713,73.953,20.647,20.635,17.0]
[1680603297114,73.953,20.647,20.634,17.0]
[1680603298536,20.0,20.652,20.63,28.0]
[1680603298720,20.0,20.645,20.63,28.0]
[1680603299623,114.0239,20.652,20.631,27.26560392]
[1680603299937,114.0239,20.652,20.632,37.0]
[1680603300334,114.0239,20.652,20.633,20.0]
[1680603300531,114.0239,20.652,20.635,20.0]
[1680603300932,114.0239,20.652,20.636,17.0]
[1680603301613,20.0,20.651,20.636,17.0]
[1680603303115,20.0,20.651,20.633,20.0]
[1680603303326,114.0239,20.652,20.634,17.0]
[1680603303627,20.0,20.651,20.635,20.0]
[1680603303827,20.0,20.651,20.636,17.0]
[1680603304219,114.0239,20.652,20.636,17.0]
[1680603306634,114.0239,20.652,20.637,20.0]
[1680603306845,114.0239,20.652,20.638,17.0]
[1680603307739,14.55374894,20.657,20.638,17.0]
[1680603307938,20.0,20.656,20.638,36.381]
[1680603308122,81.60158996,20.66,20.64,28.0]
[1680603308123,53.84158996,20.66,20.64,28.0]
[1680603308452,20.0,20.665,20.641,37.0]
[1680603308942,73.84158996,20.665,20.642,20.0]
[1680603309143,73.84158996,20.665,20.643,17.0]
[1680603309341,17.0,20.664,20.643,17.0]
[1680603309637,17.0,20.664,20.644,20.0]
[1680603309843,17.0,20.664,20.645,17.0]
[1680603310024,73.84158996,20.665,20.645,17.0]
[1680603310220,20.0,20.664,20.645,17.0]
[1680603311247,20.0,20.664,20.646,20.0]
[1680603311433,40.0,20.665,20.647,17.0]
[1680603311917,20.0,20.665,20.647,17.0]
[1680603312121,40.0,20.665,20.647,17.0]
[1680603312337,20.0,20.665,20.647,17.0]
[1680603312727,20.0,20.665,20.647,132.5763]
[1680603313433,20.0,20.665,20.649,20.0]
[1680603313632,20.0,20.667,20.65,17.0]
[1680603314028,20.0,20.668,20.65,17.0]
[1680603314422,40.0,20.668,20.65,17.0]
[1680603314632,20.0,20.668,20.65,17.0]
[1680603315236,20.0,20.668,20.649,20.0]
[1680603315419,20.0,20.668,20.65,17.0]
[1680603317448,14.57764154,20.674,20.651,40.0]
[1680603317751,116.5236,20.673,20.652,17.0]
[1680603318035,116.5236,20.673,20.653,20.0]
[1680603318247,116.5236,20.673,20.654,17.0]
[1680603318419,116.5236,20.673,20.655,39.365]
[1680603318625,116.5236,20.673,20.656,17.0]
[1680603319326,116.5236,20.673,20.657,20.0]
[1680603319525,116.5236,20.673,20.658,17.0]
[1680603320249,106.0498,20.68,20.66,27.74]
[1680603320449,110.435,20.679,20.661,57.0]
[1680603323631,110.435,20.679,20.662,7.26560392]
[1680603323826,14.76521336,20.688,20.663,56.357]
[1680603324047,20.0,20.687,20.663,56.357]
[1680603324334,20.0,20.687,20.67,28.0]
[1680603324556,20.0,20.688,20.671,17.0]
[1680603325725,20.0,20.688,20.665,20.0]
[1680603325936,20.0,20.688,20.666,17.0]
[1680603326337,20.0,20.687,20.665,20.0]
[1680603326733,17.0,20.686,20.665,20.0]
[1680603326950,20.0,20.685,20.665,20.0]
[1680603327851,20.0,20.686,20.666,17.0]
[1680603328055,20.0,20.686,20.667,20.0]
[1680603328347,20.0,20.686,20.668,17.0]
[1680603328741,20.0,20.688,20.668,17.0]
[1680603329139,20.0,20.688,20.669,20.0]
[1680603329343,20.0,20.688,20.67,17.0]
[1680603330148,20.0,20.688,20.671,20.0]
[1680603330333,20.0,20.688,20.672,17.0]
[1680603330534,115.0475,20.689,20.672,24.26560392]
[1680603330745,115.0475,20.689,20.673,20.0]
[1680603330945,115.0475,20.689,20.674,17.0]
[1680603332160,115.0475,20.689,20.675,20.0]
[1680603332357,115.0475,20.689,20.676,17.0]
[1680603333349,55.81,20.7,20.676,17.0]
[1680603333533,116.8412,20.698,20.677,7.26560392]
[1680603333735,116.8412,20.698,20.678,17.0]
[1680603334146,116.8412,20.698,20.679,20.0]
[1680603334349,116.8412,20.698,20.68,17.0]
[1680603337244,20.0,20.697,20.675,20.0]
[1680603337439,114.645,20.69,20.676,17.0]
[1680603339048,114.645,20.69,20.677,20.0]
[1680603339249,114.645,20.69,20.678,17.0]
[1680603340343,25.9552211,20.706,20.68,28.0]
[1680603340546,111.4276,20.698,20.681,37.0]
[1680603340847,111.4276,20.698,20.681,44.26560392]
[1680603341047,111.4276,20.698,20.682,7.26560392]
[1680603341264,111.4276,20.698,20.683,37.0]
[1680603341650,111.4276,20.698,20.683,44.26560392]
[1680603342159,111.4276,20.698,20.684,20.0]
[1680603342343,111.4276,20.698,20.685,17.0]
[1680603342742,111.4276,20.698,20.683,20.0]
[1680603342958,111.4276,20.698,20.681,20.0]
[1680603343158,111.4276,20.698,20.682,17.0]
[1680603343367,111.4276,20.698,20.683,20.0]
[1680603343839,111.4276,20.698,20.684,17.0]
[1680603344646,111.4276,20.698,20.685,20.0]
[1680603344847,111.4276,20.698,20.686,17.0]
[1680603345761,111.4276,20.698,20.684,17.0]
[1680603346139,111.4276,20.698,20.684,24.26560392]
[1680603347455,111.4276,20.698,20.684,17.0]
[1680603347866,111.4276,20.698,20.683,20.0]
[1680603348164,20.0,20.697,20.681,20.0]
[1680603349059,20.0,20.697,20.682,17.0]
[1680603349355,20.0,20.697,20.683,20.0]
[1680603350160,20.0,20.697,20.682,17.0]
[1680603350463,37.0,20.696,20.676,19.345]
[1680603350975,20.0,20.695,20.675,14.66253826]
[1680603351267,20.0,20.694,20.672,19.349]
[1680603351447,57.0,20.694,20.673,20.0]
[1680603351648,57.0,20.694,20.673,27.26560392]
[1680603352057,20.0,20.693,20.673,27.26560392]
[1680603352249,17.0,20.692,20.673,27.26560392]
[1680603352454,17.0,20.692,20.674,17.0]
[1680603352857,40.0,20.694,20.674,17.0]
[1680603353165,20.0,20.693,20.674,17.0]
[1680603353762,20.0,20.693,20.675,20.0]
[1680603353948,20.0,20.693,20.676,17.0]
[1680603354963,40.0,20.694,20.676,20.0]
[1680603355146,40.0,20.694,20.677,17.0]
[1680603357057,40.0,20.694,20.675,17.0]
[1680603357663,20.0,20.693,20.674,17.0]
[1680603357958,20.0,20.693,20.673,27.26560392]
[1680603359266,20.0,20.693,20.674,17.0]
[1680603360471,40.0,20.694,20.674,17.0]
[1680603360659,17.0,20.693,20.674,17.0]
[1680603360964,20.0,20.692,20.674,17.0]
[1680603361354,117.5427,20.691,20.674,17.0]
[1680603362063,111.5103,20.69,20.673,27.26560392]
[1680603362262,139.3003,20.69,20.673,27.26560392]
[1680603362450,17.0,20.689,20.673,20.0]
[1680603362870,20.0,20.688,20.673,20.0]
[1680603363060,17.0,20.687,20.673,20.0]
[1680603363252,17.0,20.687,20.672,14.79722585]
[1680603363456,20.0,20.686,20.667,19.354]
[1680603363762,20.0,20.686,20.663,19.358]
[1680603364063,20.0,20.685,20.663,19.358]
[1680603364371,20.0,20.683,20.664,20.0]
[1680603364576,17.0,20.682,20.664,27.26560392]
[1680603364754,17.0,20.682,20.665,7.26560392]
[1680603365256,17.0,20.682,20.664,27.26560392]
[1680603366460,17.0,20.682,20.665,17.0]
[1680603366853,17.0,20.684,20.665,24.26560392]
[1680603367467,20.0,20.683,20.665,24.26560392]
[1680603367973,20.0,20.685,20.665,24.26560392]
[1680603368166,37.0,20.684,20.665,24.26560392]
[1680603368371,20.0,20.684,20.665,24.26560392]
[1680603368754,20.0,20.687,20.666,20.0]
[1680603368958,20.0,20.687,20.667,17.0]
[1680603369159,20.0,20.687,20.668,20.0]
[1680603369359,20.0,20.687,20.669,17.0]
[1680603369571,20.0,20.687,20.669,132.0697]
[1680603370072,20.0,20.688,20.669,132.0697]
[1680603370473,20.0,20.688,20.669,131.97000729]
[1680603371074,20.0,20.687,20.669,131.97000729]
[1680603371573,20.0,20.688,20.669,131.97000729]
[1680603372576,20.0,20.688,20.669,16.90030729]
[1680603372764,20.0,20.688,20.669,20.0]
[1680603372962,20.0,20.689,20.67,17.0]
[1680603373775,20.0,20.689,20.671,20.0]
[1680603374075,53.84319745,20.697,20.672,17.0]
[1680603374261,19.309,20.716,20.68,27.74]
[1680603374463,19.309,20.716,20.681,37.0]
[1680603374666,27.94,20.72,20.681,37.0]
[1680603374974,28.0,20.71,20.681,162.74646552]
[1680603375169,28.0,20.71,20.682,145.74646552]
[1680603375372,20.0,20.715,20.69,55.74]
[1680603375573,20.0,20.715,20.691,20.0]
[1680603375871,20.0,20.715,20.692,17.0]
[1680603376070,20.0,20.719,20.692,20.0]
[1680603376264,27.79,20.71,20.682,72.83071]
[1680603376470,27.79,20.71,20.689,72.83071]
[1680603376682,20.0,20.709,20.689,72.83071]
[1680603377175,6.05141601,20.708,20.689,72.83071]
[1680603377380,6.05141601,20.708,20.683,37.0]
[1680603377571,20.0,20.707,20.683,37.0]
[1680603377769,40.0,20.716,20.69,41.7]
[1680603378074,40.0,20.716,20.691,17.0]
[1680603378962,23.05141601,20.715,20.691,17.0]
[1680603379163,20.0,20.714,20.691,17.0]
[1680603379381,17.0,20.713,20.691,17.0]
[1680603379580,23.05141601,20.713,20.691,17.0]
[1680603379881,26.05141601,20.712,20.691,17.0]
[1680603380178,23.05141601,20.711,20.691,17.0]
[1680603380480,20.0,20.71,20.691,17.0]
[1680603380681,17.0,20.709,20.691,17.0]
[1680603380884,20.0,20.708,20.691,17.0]
[1680603381086,26.05141601,20.708,20.691,17.0]
[1680603381382,23.05141601,20.707,20.691,17.0]
[1680603381563,20.0,20.706,20.691,17.0]
[1680603382769,26.05141601,20.706,20.69,41.7]
[1680603382964,26.05141601,20.706,20.684,20.0]
[1680603383177,26.05141601,20.706,20.685,17.0]
[1680603383374,111.266,20.708,20.69,41.56]
[1680603383582,111.266,20.708,20.691,37.0]
[1680603383878,111.266,20.708,20.69,41.56]
[1680603384183,20.0,20.707,20.69,41.56]
[1680603384392,20.0,20.707,20.69,41.7]
[1680603384690,6.05141601,20.706,20.69,41.7]
[1680603384870,20.0,20.705,20.69,41.7]
[1680603385468,20.0,20.707,20.69,41.7]
[1680603385675,37.0,20.706,20.683,20.0]
[1680603385871,20.0,20.705,20.683,20.0]
[1680603386176,20.0,20.705,20.68,113.9398]
[1680603386177,41.53,20.7,20.68,113.9398]
[1680603386377,37.0,20.699,20.68,113.9398]
[1680603386577,20.0,20.698,20.68,113.9398]
[1680603386787,20.0,20.697,20.68,113.9398]
[1680603387390,20.0,20.697,20.681,17.0]
[1680603387687,20.0,20.698,20.681,17.0]
[1680603387884,20.0,20.706,20.681,17.0]
[1680603388097,20.0,20.706,20.682,20.0]
[1680603388284,40.0,20.706,20.683,17.0]
[1680603388481,20.0,20.705,20.684,20.0]
[1680603388681,20.0,20.705,20.685,17.0]
[1680603389079,104.16840562,20.715,20.686,20.0]
[1680603389279,41.7,20.72,20.687,17.0]
[1680603389575,41.7,20.71,20.689,20.0]
[1680603389778,41.7,20.71,20.69,37.0]
[1680603390169,41.7,20.71,20.691,118.7147]
[1680603390575,20.0,20.709,20.691,118.7147]
[1680603390986,23.05511384,20.708,20.691,118.7147]
[1680603391382,20.0,20.707,20.686,112.2353]
[1680603391590,138.3266,20.707,20.688,20.0]
[1680603391792,138.3266,20.707,20.689,17.0]
[1680603391987,138.3266,20.707,20.69,20.0]
[1680603392176,138.3266,20.707,20.691,17.0]
[1680603392781,118.3266,20.707,20.691,17.0]
[1680603392985,118.3266,20.707,20.692,20.0]
[1680603393178,118.3266,20.707,20.693,17.0]
[1680603393381,118.3266,20.707,20.693,36.329]
[1680603393582,118.3266,20.707,20.694,20.0]
[1680603393880,118.3266,20.707,20.695,17.0]
[1680603394289,6.05511384,20.716,20.695,17.0]
[1680603394496,115.7879,20.715,20.694,20.0]
[1680603394696,115.7879,20.715,20.695,17.0]
[1680603396882,120.19081384,20.713,20.694,17.0]
[1680603397281,114.1357,20.713,20.694,17.0]
[1680603397496,20.0,20.712,20.694,17.0]
[1680603398088,114.1357,20.713,20.694,17.0]
[1680603398089,120.19081384,20.713,20.694,17.0]
[1680603398483,120.19081384,20.713,20.695,20.0]
[1680603398685,120.19081384,20.713,20.696,17.0]
[1680603399086,17.0,20.712,20.694,17.0]
[1680603399289,120.19081384,20.713,20.694,17.0]
[1680603400487,20.0,20.712,20.694,17.0]
[1680603403402,20.0,20.712,20.697,19.326]
[1680603403591,114.1357,20.713,20.698,17.0]
[1680603404301,20.0,20.712,20.698,17.0]
[1680603404505,20.0,20.712,20.697,19.326]
[1680603409804,20.0,20.712,20.692,19.33]
[1680603410102,17.0,20.711,20.693,37.0]
[1680603411308,20.0,20.71,20.693,37.0]
[1680603411508,17.0,20.709,20.693,37.0]
[1680603412601,17.0,20.709,20.693,20.0]
[1680603413612,41.7,20.71,20.693,20.0]
[1680603413797,41.7,20.71,20.694,17.0]
[1680603415905,128.5662092,20.713,20.694,17.0]
[1680603416107,17.0,20.712,20.694,17.0]
[1680603416317,37.0,20.712,20.694,17.0]
[1680603416803,20.0,20.712,20.694,17.0]
[1680603417815,17.0,20.711,20.694,17.0]
[1680603418317,20.0,20.71,20.694,17.0]
[1680603418506,17.0,20.711,20.694,17.0]
[1680603419716,114.1357,20.713,20.695,19.327]
[1680603419904,114.1357,20.713,20.696,17.0]
[1680603420098,114.1357,20.713,20.7,19.323]
[1680603420301,114.1357,20.713,20.701,37.0]
[1680603423505,114.1357,20.713,20.701,17.0]
[1680603425016,116.6612,20.724,20.702,27.26560392]
[1680603425314,91.6612,20.724,20.703,37.0]
[1680603425523,91.6612,20.724,20.704,20.0]
[1680603425823,91.6612,20.724,20.704,27.26560392]
[1680603426012,91.6612,20.724,20.705,24.26560392]
[1680603426212,41.63,20.73,20.706,20.0]
[1680603426505,41.63,20.73,20.711,20.0]
[1680603426706,41.63,20.73,20.712,17.0]
[1680603426914,14.63586775,20.731,20.713,20.0]
[1680603427110,20.0,20.729,20.713,108.339]
[1680603427311,20.0,20.729,20.714,17.0]
[1680603427502,20.0,20.729,20.706,20.0]
[1680603427708,20.0,20.729,20.707,17.0]
[1680603427913,20.0,20.729,20.706,20.0]
[1680603428117,20.0,20.727,20.702,151.74784871]
[1680603428317,20.0,20.726,20.707,7.26560392]
[1680603428820,126.9104,20.725,20.707,7.26560392]
[1680603429119,20.0,20.724,20.705,20.0]
[1680603429521,20.0,20.724,20.702,108.339]
[1680603429823,20.0,20.723,20.705,17.0]
[1680603430023,20.0,20.724,20.706,20.0]
[1680603430225,20.0,20.726,20.707,17.0]
[1680603430525,134.9582,20.726,20.707,17.0]
[1680603430719,20.0,20.725,20.707,17.0]
[1680603431020,20.0,20.723,20.707,17.0]
[1680603432523,20.0,20.729,20.708,20.0]
[1680603432718,17.0,20.728,20.709,17.0]
[1680603432920,20.0,20.729,20.71,20.0]
[1680603433111,20.0,20.729,20.71,7.26560392]
[1680603433311,17.0,20.728,20.71,7.26560392]
[1680603433512,17.0,20.728,20.703,119.4046]
[1680603433811,17.0,20.728,20.704,37.0]
[1680603434011,20.0,20.726,20.704,37.0]
[1680603434213,17.0,20.725,20.704,27.26560392]
[1680603434508,20.0,20.724,20.704,27.26560392]
[1680603434707,17.0,20.723,20.704,27.26560392]
[1680603435426,17.0,20.723,20.705,17.0]
[1680603435923,20.0,20.724,20.705,24.26560392]
[1680603436124,37.0,20.723,20.705,24.26560392]